[Event "Titled Tuesday Blitz October 31 Early 2023"]
[White "Hayrapetyan, Hovik"]
[Black "Mndapoetzz04"]
[WhiteFideId "13302639"]
[WhiteElo "2778"]
[BlackElo "2691"]
[Result "0-1"]
[Round "9"]
[TimeControl "180+1"]
[Date "2023.10.31"]
[WhiteClock "0:00:00"]
[BlackClock "0:00:03"]
[Board "31"]

1. d4 {[%clk 0:02:59]}  Nf6 {[%clk 0:02:59]} 2. c4 {[%clk 0:02:52]}  g6 {[%clk 0:02:58]} 3. Nc3 {[%clk 0:02:20]}  d5 {[%clk 0:02:57]} 4. cxd5 {[%clk 0:01:57]}  Nxd5 {[%clk 0:02:56]} 5. e4 {[%clk 0:01:58]}  Nxc3 {[%clk 0:02:56]} 6. bxc3 {[%clk 0:01:59]}  Bg7 {[%clk 0:02:56]} 7. Nf3 {[%clk 0:01:59]}  c5 {[%clk 0:02:56]} 8. Rb1 {[%clk 0:01:59]}  O-O {[%clk 0:02:55]} 9. Be2 {[%clk 0:01:52]}  b6 {[%clk 0:02:53]} 10. O-O {[%clk 0:01:45]}  Bb7 {[%clk 0:02:48]} 11. d5 {[%clk 0:01:45]}  Bxc3 {[%clk 0:02:30]} 12. Rb3 {[%clk 0:01:37]}  Bg7 {[%clk 0:02:25]} 13. h4 {[%clk 0:01:31]}  e6 {[%clk 0:02:01]} 14. h5 {[%clk 0:01:16]}  exd5 {[%clk 0:01:58]} 15. hxg6 {[%clk 0:01:16]}  hxg6 {[%clk 0:01:58]} 16. Ng5 {[%clk 0:01:13]}  Nc6 {[%clk 0:01:47]} 17. Rh3 {[%clk 0:01:06]}  Nd4 {[%clk 0:01:43]} 18. Be3 {[%clk 0:00:49]}  Qd7 {[%clk 0:01:21]} 19. Bg4 {[%clk 0:00:46]}  Qe7 {[%clk 0:01:19]} 20. g3 {[%clk 0:00:32]}  dxe4 {[%clk 0:01:16]} 21. Kg2 {[%clk 0:00:32]}  Rad8 {[%clk 0:01:11]} 22. Rfh1 {[%clk 0:00:29]}  Nf3 {[%clk 0:01:08]} 23. Rh8+ {[%clk 0:00:04]}  Bxh8 {[%clk 0:01:08]} 24. Rxh8+ {[%clk 0:00:04]}  Kxh8 {[%clk 0:01:08]} 25. Qa1+ {[%clk 0:00:02]}  Rd4 {[%clk 0:00:29]} 26. Qh1+ {[%clk 0:00:02]}  Kg7 {[%clk 0:00:29]} 27. Qh7+ {[%clk 0:00:02]}  Kf6 {[%clk 0:00:30]} 28. Qh6 {[%clk 0:00:02]}  Ke5 {[%clk 0:00:06]} 29. Nh7 {[%clk 0:00:02]}  f5 {[%clk 0:00:05]} 30. Qf4+ {[%clk 0:00:02]}  Ke6 {[%clk 0:00:04]} 31. Nxf8+ {[%clk 0:00:03]}  Qxf8 {[%clk 0:00:04]} 32. Bxd4 {[%clk 0:00:03]}  cxd4 {[%clk 0:00:04]} 33. Bxf3 {[%clk 0:00:02]}  exf3+ {[%clk 0:00:05]} 34. Kg1 {[%clk 0:00:03]}  Qd6 {[%clk 0:00:06]} 35. Qg5 {[%clk 0:00:04]}  Kd5 {[%clk 0:00:04]} 36. Qd2 {[%clk 0:00:03]}  Qe6 {[%clk 0:00:04]} 37. Qd1 {[%clk 0:00:02]}  Qe2 {[%clk 0:00:04]} 38. Qb3+ {[%clk 0:00:03]}  Kd6 {[%clk 0:00:05]} 39. Qb4+ {[%clk 0:00:03]}  Kc7 {[%clk 0:00:05]} 40. Qe7+ {[%clk 0:00:00]}  Qxe7 {[%clk 0:00:03]} 0-1


[Site "https://www.chess.com"]

[Event "Titled Tuesday Blitz October 31 Early 2023"]
[White "Rosen, Eric"]
[Black "Mekhitarian, Krikor Sevag"]
[WhiteFideId "2032562"]
[BlackFideId "2107660"]
[WhiteElo "2685"]
[BlackElo "2759"]
[Result "0-1"]
[Round "9"]
[TimeControl "180+1"]
[Date "2023.10.31"]
[WhiteClock "0:00:00"]
[BlackClock "0:00:08"]
[Board "32"]

1. e4 {[%clk 0:03:00]}  e6 {[%clk 0:02:59]} 2. f4 {[%clk 0:03:00]}  d5 {[%clk 0:02:54]} 3. e5 {[%clk 0:03:00]}  c5 {[%clk 0:02:53]} 4. Nf3 {[%clk 0:03:01]}  Nc6 {[%clk 0:02:52]} 5. c3 {[%clk 0:03:01]}  d4 {[%clk 0:02:45]} 6. Na3 {[%clk 0:03:00]}  Nh6 {[%clk 0:02:43]} 7. Bd3 {[%clk 0:03:00]}  Be7 {[%clk 0:02:39]} 8. O-O {[%clk 0:02:59]}  b6 {[%clk 0:02:28]} 9. Be4 {[%clk 0:02:57]}  Bb7 {[%clk 0:02:28]} 10. d3 {[%clk 0:02:54]}  dxc3 {[%clk 0:02:10]} 11. bxc3 {[%clk 0:02:54]}  Qd7 {[%clk 0:01:57]} 12. Qe2 {[%clk 0:02:54]}  Rd8 {[%clk 0:01:53]} 13. Nc4 {[%clk 0:02:36]}  O-O {[%clk 0:01:44]} 14. a4 {[%clk 0:02:35]}  Kh8 {[%clk 0:01:37]} 15. Be3 {[%clk 0:02:25]}  f5 {[%clk 0:01:36]} 16. exf6 {[%clk 0:02:24]}  gxf6 {[%clk 0:01:37]} 17. Bf2 {[%clk 0:01:49]}  Rg8 {[%clk 0:01:22]} 18. h3 {[%clk 0:01:43]}  Nf5 {[%clk 0:01:17]} 19. g4 {[%clk 0:01:29]}  h5 {[%clk 0:01:06]} 20. g5 {[%clk 0:01:17]}  fxg5 {[%clk 0:01:00]} 21. Nfe5 {[%clk 0:01:11]}  Qe8 {[%clk 0:00:54]} 22. Nxc6 {[%clk 0:00:59]}  Bxc6 {[%clk 0:00:19]} 23. Bxc6 {[%clk 0:00:59]}  Qxc6 {[%clk 0:00:20]} 24. Qxh5+ {[%clk 0:00:59]}  Kg7 {[%clk 0:00:21]} 25. fxg5 {[%clk 0:00:30]}  Rh8 {[%clk 0:00:10]} 26. Qg4 {[%clk 0:00:26]}  Rxd3 {[%clk 0:00:04]} 27. Ne5 {[%clk 0:00:21]}  Qd5 {[%clk 0:00:02]} 28. Nxd3 {[%clk 0:00:19]}  Qxd3 {[%clk 0:00:03]} 29. h4 {[%clk 0:00:20]}  Qxc3 {[%clk 0:00:02]} 30. Rae1 {[%clk 0:00:15]}  Kf7 {[%clk 0:00:02]} 31. Bg3 {[%clk 0:00:12]}  Qd4+ {[%clk 0:00:02]} 32. Qxd4 {[%clk 0:00:12]}  cxd4 {[%clk 0:00:03]} 33. Be5 {[%clk 0:00:12]}  Rxh4 {[%clk 0:00:03]} 34. g6+ {[%clk 0:00:03]}  Kxg6 {[%clk 0:00:03]} 35. Rf2 {[%clk 0:00:04]}  Kf7 {[%clk 0:00:03]} 36. Rd1 {[%clk 0:00:03]}  Bg5 {[%clk 0:00:03]} 37. Bxd4 {[%clk 0:00:02]}  Kg6 {[%clk 0:00:03]} 38. Rg2 {[%clk 0:00:02]}  Rxd4 {[%clk 0:00:01]} 39. Re1 {[%clk 0:00:01]}  Kf6 {[%clk 0:00:02]} 40. Rf2 {[%clk 0:00:01]}  Bf4 {[%clk 0:00:02]} 41. Kg2 {[%clk 0:00:01]}  e5 {[%clk 0:00:02]} 42. Rfe2 {[%clk 0:00:01]}  Rd3 {[%clk 0:00:02]} 43. Rf1 {[%clk 0:00:01]}  Ne3+ {[%clk 0:00:03]} 44. Kf2 {[%clk 0:00:01]}  Nxf1 {[%clk 0:00:03]} 45. Kxf1 {[%clk 0:00:02]}  Rf3+ {[%clk 0:00:03]} 46. Ke1 {[%clk 0:00:02]}  Ra3 {[%clk 0:00:04]} 47. Re4 {[%clk 0:00:02]}  Ra1+ {[%clk 0:00:04]} 48. Ke2 {[%clk 0:00:02]}  Ra3 {[%clk 0:00:05]} 49. Rb4 {[%clk 0:00:03]}  Kf5 {[%clk 0:00:05]} 50. Rb5 {[%clk 0:00:03]}  Ke4 {[%clk 0:00:05]} 51. Rb4+ {[%clk 0:00:03]}  Kd5 {[%clk 0:00:06]} 52. Kd1 {[%clk 0:00:03]}  Kc5 {[%clk 0:00:06]} 53. Re4 {[%clk 0:00:04]}  a5 {[%clk 0:00:06]} 54. Kc2 {[%clk 0:00:04]}  Re3 {[%clk 0:00:07]} 55. Rxe3 {[%clk 0:00:01]}  Bxe3 {[%clk 0:00:08]} 56. Kd3 {[%clk 0:00:00]}  Bd4 {[%clk 0:00:08]} 0-1


[Site "https://www.chess.com"]

[Event "Titled Tuesday Blitz October 31 Early 2023"]
[White "Bao, Qilin"]
[Black "Weetik, Vjacheslav"]
[WhiteFideId "8605750"]
[BlackFideId "4153472"]
[WhiteElo "2656"]
[BlackElo "2735"]
[Result "1-0"]
[Round "9"]
[TimeControl "180+1"]
[Date "2023.10.31"]
[WhiteClock "0:00:06"]
[BlackClock "0:00:00"]
[Board "37"]

1. Nf3 {[%clk 0:02:56]}  Nf6 {[%clk 0:02:59]} 2. g3 {[%clk 0:02:55]}  d5 {[%clk 0:02:58]} 3. Bg2 {[%clk 0:02:55]}  Bf5 {[%clk 0:02:59]} 4. O-O {[%clk 0:02:54]}  e6 {[%clk 0:02:58]} 5. b3 {[%clk 0:02:55]}  h6 {[%clk 0:02:57]} 6. Bb2 {[%clk 0:02:55]}  Be7 {[%clk 0:02:55]} 7. d3 {[%clk 0:02:55]}  O-O {[%clk 0:02:53]} 8. Nbd2 {[%clk 0:02:53]}  Nbd7 {[%clk 0:02:52]} 9. c4 {[%clk 0:02:53]}  c6 {[%clk 0:02:52]} 10. a3 {[%clk 0:02:53]}  a5 {[%clk 0:02:51]} 11. Ra2 {[%clk 0:02:53]}  Re8 {[%clk 0:02:51]} 12. Qa1 {[%clk 0:02:52]}  Bd6 {[%clk 0:02:51]} 13. e4 {[%clk 0:02:30]}  dxe4 {[%clk 0:02:47]} 14. dxe4 {[%clk 0:02:30]}  Nxe4 {[%clk 0:02:43]} 15. Bxg7 {[%clk 0:02:29]}  e5 {[%clk 0:02:10]} 16. Bxh6 {[%clk 0:02:22]}  Qf6 {[%clk 0:02:09]} 17. Be3 {[%clk 0:02:17]}  Ndc5 {[%clk 0:02:00]} 18. b4 {[%clk 0:02:01]}  Ne6 {[%clk 0:01:42]} 19. c5 {[%clk 0:01:59]}  Bc7 {[%clk 0:01:40]} 20. Nh4 {[%clk 0:01:48]}  Nxd2 {[%clk 0:01:37]} 21. Rxd2 {[%clk 0:01:30]}  axb4 {[%clk 0:01:32]} 22. Qd1 {[%clk 0:01:30]}  bxa3 {[%clk 0:01:25]} 23. Qf3 {[%clk 0:01:30]}  Ng7 {[%clk 0:01:22]} 24. Nxf5 {[%clk 0:01:03]}  Qxf5 {[%clk 0:01:18]} 25. Qe2 {[%clk 0:01:02]}  e4 {[%clk 0:01:07]} 26. Bd4 {[%clk 0:00:51]}  Be5 {[%clk 0:01:06]} 27. Bxe4 {[%clk 0:00:48]}  Bxd4 {[%clk 0:01:02]} 28. Rxd4 {[%clk 0:00:48]}  a2 {[%clk 0:00:56]} 29. Ra1 {[%clk 0:00:40]}  Qe5 {[%clk 0:00:47]} 30. Qd1 {[%clk 0:00:24]}  Ne6 {[%clk 0:00:38]} 31. Rb4 {[%clk 0:00:24]}  Nxc5 {[%clk 0:00:34]} 32. Bc2 {[%clk 0:00:24]}  Qc3 {[%clk 0:00:27]} 33. Rg4+ {[%clk 0:00:17]}  Kf8 {[%clk 0:00:26]} 34. Qd6+ {[%clk 0:00:14]}  Re7 {[%clk 0:00:27]} 35. Qh6+ {[%clk 0:00:14]}  Ke8 {[%clk 0:00:27]} 36. Rg8+ {[%clk 0:00:13]}  Kd7 {[%clk 0:00:27]} 37. Bf5+ {[%clk 0:00:12]}  Kc7 {[%clk 0:00:23]} 38. Qf4+ {[%clk 0:00:12]}  Kb6 {[%clk 0:00:22]} 39. Rxa8 {[%clk 0:00:11]}  Qxa1+ {[%clk 0:00:22]} 40. Kg2 {[%clk 0:00:12]}  Qb2 {[%clk 0:00:22]} 41. Qd6 {[%clk 0:00:07]}  Qe5 {[%clk 0:00:16]} 42. Qd8+ {[%clk 0:00:06]}  Qc7 {[%clk 0:00:17]} 43. Qxc7+ {[%clk 0:00:06]}  Kxc7 {[%clk 0:00:16]} 44. Rxa2 {[%clk 0:00:06]}  b5 {[%clk 0:00:17]} 45. Rc2 {[%clk 0:00:06]}  Kb6 {[%clk 0:00:17]} 46. h4 {[%clk 0:00:05]}  f6 {[%clk 0:00:17]} 47. h5 {[%clk 0:00:06]}  Nb7 {[%clk 0:00:14]} 48. h6 {[%clk 0:00:06]}  Nd6 {[%clk 0:00:14]} 49. h7 {[%clk 0:00:06]}  Re8 {[%clk 0:00:15]} 50. Bg6 {[%clk 0:00:06]}  Rh8 {[%clk 0:00:15]} 51. Rd2 {[%clk 0:00:06]}  Nc4 {[%clk 0:00:15]} 52. Rd7 {[%clk 0:00:06]}  b4 {[%clk 0:00:15]} 53. Rg7 {[%clk 0:00:06]}  Ne5 {[%clk 0:00:16]} 54. Bf5 {[%clk 0:00:06]}  c5 {[%clk 0:00:09]} 55. Rg8 {[%clk 0:00:07]}  Rxh7 {[%clk 0:00:10]} 56. Bxh7 {[%clk 0:00:07]}  c4 {[%clk 0:00:11]} 57. Rc8 {[%clk 0:00:06]}  b3 {[%clk 0:00:10]} 58. g4 {[%clk 0:00:04]}  Kb5 {[%clk 0:00:09]} 59. Kg3 {[%clk 0:00:04]}  Kb4 {[%clk 0:00:09]} 60. f4 {[%clk 0:00:04]}  Nd7 {[%clk 0:00:06]} 61. Bf5 {[%clk 0:00:05]}  Nc5 {[%clk 0:00:07]} 62. Rb8+ {[%clk 0:00:05]}  Kc3 {[%clk 0:00:07]} 63. g5 {[%clk 0:00:06]}  fxg5 {[%clk 0:00:06]} 64. fxg5 {[%clk 0:00:06]}  Kd4 {[%clk 0:00:02]} 65. g6 {[%clk 0:00:06]}  Ne4+ {[%clk 0:00:00]} 66. Bxe4 {[%clk 0:00:06]} 1-0


[Site "https://www.chess.com"]

[Event "Titled Tuesday Blitz October 31 Early 2023"]
[White "Karthik Rajaa"]
[Black "Nurmanova, Alua"]
[WhiteFideId "25035215"]
[BlackFideId "13729390"]
[WhiteElo "2727"]
[BlackElo "2644"]
[Result "1/2-1/2"]
[Round "9"]
[TimeControl "180+1"]
[Date "2023.10.31"]
[WhiteClock "0:00:17"]
[BlackClock "0:00:22"]
[Board "38"]

1. Nf3 {[%clk 0:03:00]}  Nf6 {[%clk 0:02:59]} 2. c4 {[%clk 0:03:00]}  g6 {[%clk 0:03:00]} 3. Nc3 {[%clk 0:03:00]}  Bg7 {[%clk 0:03:01]} 4. g3 {[%clk 0:03:01]}  O-O {[%clk 0:03:01]} 5. Bg2 {[%clk 0:03:01]}  d5 {[%clk 0:02:58]} 6. cxd5 {[%clk 0:03:02]}  Nxd5 {[%clk 0:02:59]} 7. h4 {[%clk 0:03:03]}  h5 {[%clk 0:02:56]} 8. Ng5 {[%clk 0:03:00]}  Nb6 {[%clk 0:02:53]} 9. d3 {[%clk 0:02:53]}  Nc6 {[%clk 0:02:51]} 10. Bd2 {[%clk 0:02:53]}  Bg4 {[%clk 0:02:49]} 11. Bf3 {[%clk 0:02:46]}  Bxf3 {[%clk 0:02:46]} 12. Nxf3 {[%clk 0:02:47]}  e5 {[%clk 0:02:42]} 13. Ng5 {[%clk 0:02:46]}  Nd4 {[%clk 0:02:40]} 14. Rc1 {[%clk 0:02:40]}  Qd7 {[%clk 0:02:38]} 15. Nce4 {[%clk 0:02:39]}  c6 {[%clk 0:02:33]} 16. Nc5 {[%clk 0:02:36]}  Qe7 {[%clk 0:02:12]} 17. e3 {[%clk 0:02:36]}  Nb5 {[%clk 0:02:04]} 18. g4 {[%clk 0:02:33]}  hxg4 {[%clk 0:01:44]} 19. Qxg4 {[%clk 0:02:34]}  Nd5 {[%clk 0:01:41]} 20. Nce4 {[%clk 0:02:11]}  f5 {[%clk 0:01:38]} 21. Qg2 {[%clk 0:02:02]}  fxe4 {[%clk 0:01:38]} 22. Nxe4 {[%clk 0:01:57]}  Qf7 {[%clk 0:01:17]} 23. Rg1 {[%clk 0:01:55]}  Rad8 {[%clk 0:01:15]} 24. Ng5 {[%clk 0:01:46]}  Qf6 {[%clk 0:01:12]} 25. Ne4 {[%clk 0:01:43]}  Qf5 {[%clk 0:01:12]} 26. Nc5 {[%clk 0:01:08]}  Ne7 {[%clk 0:01:06]} 27. a4 {[%clk 0:00:58]}  Nd6 {[%clk 0:01:03]} 28. e4 {[%clk 0:00:49]}  Qf7 {[%clk 0:00:57]} 29. h5 {[%clk 0:00:33]}  b6 {[%clk 0:00:56]} 30. hxg6 {[%clk 0:00:31]}  Nxg6 {[%clk 0:00:49]} 31. Qxg6 {[%clk 0:00:24]}  Qxg6 {[%clk 0:00:49]} 32. Rxg6 {[%clk 0:00:25]}  bxc5 {[%clk 0:00:50]} 33. Rxc5 {[%clk 0:00:23]}  Ne8 {[%clk 0:00:47]} 34. Bc3 {[%clk 0:00:22]}  Kh7 {[%clk 0:00:45]} 35. Rg3 {[%clk 0:00:21]}  Rd7 {[%clk 0:00:37]} 36. Rxc6 {[%clk 0:00:21]}  Nd6 {[%clk 0:00:34]} 37. Ke2 {[%clk 0:00:20]}  Rfd8 {[%clk 0:00:33]} 38. Rc5 {[%clk 0:00:20]}  Nf7 {[%clk 0:00:32]} 39. Rc6 {[%clk 0:00:19]}  Bh6 {[%clk 0:00:32]} 40. Rh3 {[%clk 0:00:18]}  Kg7 {[%clk 0:00:31]} 41. Rg3+ {[%clk 0:00:18]}  Kf8 {[%clk 0:00:29]} 42. Rf6 {[%clk 0:00:19]}  Ke7 {[%clk 0:00:28]} 43. Rf5 {[%clk 0:00:19]}  Bf4 {[%clk 0:00:28]} 44. Rg7 {[%clk 0:00:19]}  Ke6 {[%clk 0:00:28]} 45. Rg6+ {[%clk 0:00:19]}  Ke7 {[%clk 0:00:29]} 46. Bb4+ {[%clk 0:00:19]}  Nd6 {[%clk 0:00:28]} 47. Rg7+ {[%clk 0:00:18]}  Ke6 {[%clk 0:00:28]} 48. Rg6+ {[%clk 0:00:18]}  Ke7 {[%clk 0:00:28]} 49. Rff6 {[%clk 0:00:18]}  a5 {[%clk 0:00:23]} 50. Re6+ {[%clk 0:00:17]}  Kf7 {[%clk 0:00:23]} 51. Bxd6 {[%clk 0:00:18]}  Rb7 {[%clk 0:00:22]} 52. Ref6+ {[%clk 0:00:18]}  Ke8 {[%clk 0:00:22]} 53. Rf8+ {[%clk 0:00:16]}  Kd7 {[%clk 0:00:22]} 54. Rg7+ {[%clk 0:00:17]}  Kc6 {[%clk 0:00:19]} 55. Rxb7 {[%clk 0:00:15]}  Rxf8 {[%clk 0:00:19]} 56. Rc7+ {[%clk 0:00:15]}  Kxd6 {[%clk 0:00:20]} 57. Ra7 {[%clk 0:00:13]}  Rb8 {[%clk 0:00:19]} 58. Rxa5 {[%clk 0:00:12]}  Rxb2+ {[%clk 0:00:20]} 59. Kf3 {[%clk 0:00:13]}  Rb3 {[%clk 0:00:20]} 60. Rd5+ {[%clk 0:00:13]}  Ke6 {[%clk 0:00:20]} 61. a5 {[%clk 0:00:14]}  Ra3 {[%clk 0:00:21]} 62. Kg4 {[%clk 0:00:15]}  Ra2 {[%clk 0:00:21]} 63. Kf3 {[%clk 0:00:14]}  Bd2 {[%clk 0:00:19]} 64. d4 {[%clk 0:00:14]}  exd4 {[%clk 0:00:18]} 65. Rxd4 {[%clk 0:00:15]}  Bxa5 {[%clk 0:00:18]} 66. Rd5 {[%clk 0:00:16]}  Bc7 {[%clk 0:00:18]} 67. Rf5 {[%clk 0:00:16]}  Bb6 {[%clk 0:00:19]} 68. Kg3 {[%clk 0:00:16]}  Re2 {[%clk 0:00:19]} 69. f3 {[%clk 0:00:16]}  Bc7+ {[%clk 0:00:19]} 70. Kg4 {[%clk 0:00:16]}  Rg2+ {[%clk 0:00:19]} 71. Kh4 {[%clk 0:00:16]}  Rh2+ {[%clk 0:00:20]} 72. Kg4 {[%clk 0:00:16]}  Rg2+ {[%clk 0:00:20]} 73. Kh3 {[%clk 0:00:17]}  Rh2+ {[%clk 0:00:21]} 74. Kg4 {[%clk 0:00:17]}  Rg2+ {[%clk 0:00:22]} 1/2-1/2


[Site "https://www.chess.com"]

[Event "Titled Tuesday Blitz October 31 Early 2023"]
[White "Halkias, Stelios"]
[Black "Jain Kashish Manoj"]
[WhiteFideId "4201809"]
[BlackFideId "35081098"]
[WhiteElo "2719"]
[BlackElo "2631"]
[Result "0-1"]
[Round "9"]
[TimeControl "180+1"]
[Date "2023.10.31"]
[WhiteClock "0:00:02"]
[BlackClock "0:00:05"]
[Board "42"]

1. Nf3 {[%clk 0:03:00]}  Nf6 {[%clk 0:02:59]} 2. c4 {[%clk 0:03:01]}  g6 {[%clk 0:03:00]} 3. g3 {[%clk 0:03:01]}  Bg7 {[%clk 0:03:00]} 4. Bg2 {[%clk 0:03:01]}  O-O {[%clk 0:03:01]} 5. O-O {[%clk 0:03:01]}  d6 {[%clk 0:03:02]} 6. d4 {[%clk 0:03:01]}  Nc6 {[%clk 0:03:02]} 7. Nc3 {[%clk 0:03:01]}  a6 {[%clk 0:03:02]} 8. Bf4 {[%clk 0:02:59]}  Rb8 {[%clk 0:03:02]} 9. Rc1 {[%clk 0:02:59]}  Bd7 {[%clk 0:03:02]} 10. d5 {[%clk 0:02:58]}  Na5 {[%clk 0:02:58]} 11. c5 {[%clk 0:02:58]}  dxc5 {[%clk 0:02:48]} 12. e4 {[%clk 0:02:58]}  b5 {[%clk 0:02:19]} 13. e5 {[%clk 0:02:48]}  Nh5 {[%clk 0:02:17]} 14. Be3 {[%clk 0:02:48]}  Nc4 {[%clk 0:02:16]} 15. Bxc5 {[%clk 0:02:20]}  Nxe5 {[%clk 0:01:33]} 16. Re1 {[%clk 0:02:18]}  Bg4 {[%clk 0:01:29]} 17. Nxe5 {[%clk 0:02:10]}  Bxd1 {[%clk 0:01:27]} 18. Nc6 {[%clk 0:02:10]}  Qd7 {[%clk 0:01:10]} 19. Nxb8 {[%clk 0:01:11]}  Rxb8 {[%clk 0:01:09]} 20. Rxe7 {[%clk 0:01:11]}  Qd8 {[%clk 0:00:49]} 21. Rxd1 {[%clk 0:01:03]}  Bf8 {[%clk 0:00:49]} 22. d6 {[%clk 0:01:02]}  cxd6 {[%clk 0:00:44]} 23. Ree1 {[%clk 0:01:01]}  b4 {[%clk 0:00:32]} 24. Ne4 {[%clk 0:00:58]}  Qa5 {[%clk 0:00:19]} 25. Bxd6 {[%clk 0:00:46]}  Bxd6 {[%clk 0:00:19]} 26. Nxd6 {[%clk 0:00:46]}  Qxa2 {[%clk 0:00:18]} 27. Bd5 {[%clk 0:00:46]}  Qxb2 {[%clk 0:00:18]} 28. Nxf7 {[%clk 0:00:46]}  Kf8 {[%clk 0:00:18]} 29. Ng5 {[%clk 0:00:43]}  Nf6 {[%clk 0:00:18]} 30. Bc4 {[%clk 0:00:34]}  b3 {[%clk 0:00:06]} 31. Ne6+ {[%clk 0:00:18]}  Kg8 {[%clk 0:00:06]} 32. Nc5+ {[%clk 0:00:15]}  Kh8 {[%clk 0:00:06]} 33. Nd3 {[%clk 0:00:08]}  Qc3 {[%clk 0:00:05]} 34. Rc1 {[%clk 0:00:08]}  Qd4 {[%clk 0:00:06]} 35. Rb1 {[%clk 0:00:08]}  Qxc4 {[%clk 0:00:06]} 36. Ne5 {[%clk 0:00:09]}  Qd4 {[%clk 0:00:06]} 37. Nc6 {[%clk 0:00:08]}  Qb6 {[%clk 0:00:06]} 38. Nxb8 {[%clk 0:00:08]}  Qxb8 {[%clk 0:00:07]} 39. Re6 {[%clk 0:00:08]}  Ne4 {[%clk 0:00:07]} 40. Rxe4 {[%clk 0:00:07]}  a5 {[%clk 0:00:08]} 41. Ra4 {[%clk 0:00:08]}  Qb5 {[%clk 0:00:08]} 42. Rxa5 {[%clk 0:00:08]}  Qxa5 {[%clk 0:00:08]} 43. Rxb3 {[%clk 0:00:08]}  Qe1+ {[%clk 0:00:06]} 44. Kg2 {[%clk 0:00:08]}  Qe4+ {[%clk 0:00:07]} 45. Kg1 {[%clk 0:00:09]}  Qe5 {[%clk 0:00:04]} 46. h4 {[%clk 0:00:08]}  Qd6 {[%clk 0:00:04]} 47. Re3 {[%clk 0:00:08]}  Kg7 {[%clk 0:00:04]} 48. Kg2 {[%clk 0:00:08]}  Kf6 {[%clk 0:00:04]} 49. Kg1 {[%clk 0:00:09]}  h6 {[%clk 0:00:04]} 50. Kg2 {[%clk 0:00:10]}  g5 {[%clk 0:00:04]} 51. hxg5+ {[%clk 0:00:09]}  hxg5 {[%clk 0:00:05]} 52. Kg1 {[%clk 0:00:10]}  g4 {[%clk 0:00:06]} 53. Kg2 {[%clk 0:00:10]}  Kf5 {[%clk 0:00:06]} 54. Kg1 {[%clk 0:00:11]}  Qd5 {[%clk 0:00:06]} 55. Kf1 {[%clk 0:00:10]}  Qh1+ {[%clk 0:00:05]} 56. Ke2 {[%clk 0:00:11]}  Qc1 {[%clk 0:00:06]} 57. Rd3 {[%clk 0:00:09]}  Qc2+ {[%clk 0:00:06]} 58. Ke3 {[%clk 0:00:08]}  Ke5 {[%clk 0:00:05]} 59. Rd2 {[%clk 0:00:04]}  Qc5+ {[%clk 0:00:05]} 60. Ke2 {[%clk 0:00:05]}  Ke4 {[%clk 0:00:05]} 61. Ke1 {[%clk 0:00:05]}  Qc1+ {[%clk 0:00:05]} 62. Rd1 {[%clk 0:00:05]}  Qc4 {[%clk 0:00:05]} 63. Rd2 {[%clk 0:00:05]}  Kf3 {[%clk 0:00:05]} 64. Kd1 {[%clk 0:00:05]}  Qb3+ {[%clk 0:00:03]} 65. Ke1 {[%clk 0:00:04]}  Qc3 {[%clk 0:00:03]} 66. Kd1 {[%clk 0:00:04]}  Qxd2+ {[%clk 0:00:04]} 67. Kxd2 {[%clk 0:00:02]}  Kxf2 {[%clk 0:00:05]} 0-1


[Site "https://www.chess.com"]

[Event "Titled Tuesday Blitz October 31 Early 2023"]
[White "NelsonLinda"]
[Black "Djokic, Mihailo"]
[BlackFideId "976440"]
[WhiteElo "2624"]
[BlackElo "2708"]
[Result "0-1"]
[Round "9"]
[TimeControl "180+1"]
[Date "2023.10.31"]
[WhiteClock "0:00:17"]
[BlackClock "0:01:05"]
[Board "43"]

1. b3 {[%clk 0:02:58]}  e5 {[%clk 0:02:57]} 2. Bb2 {[%clk 0:02:58]}  Nc6 {[%clk 0:02:57]} 3. e3 {[%clk 0:02:55]}  Nf6 {[%clk 0:02:57]} 4. Nf3 {[%clk 0:02:55]}  e4 {[%clk 0:02:57]} 5. Ne5 {[%clk 0:02:55]}  Nxe5 {[%clk 0:02:44]} 6. Bxe5 {[%clk 0:02:56]}  Be7 {[%clk 0:02:38]} 7. Be2 {[%clk 0:02:55]}  d6 {[%clk 0:02:38]} 8. Bb2 {[%clk 0:02:54]}  O-O {[%clk 0:02:39]} 9. O-O {[%clk 0:02:55]}  Bf5 {[%clk 0:02:37]} 10. d3 {[%clk 0:02:51]}  d5 {[%clk 0:02:38]} 11. Nd2 {[%clk 0:02:49]}  Re8 {[%clk 0:02:36]} 12. Re1 {[%clk 0:02:40]}  Qd7 {[%clk 0:02:36]} 13. Nf1 {[%clk 0:02:39]}  Rad8 {[%clk 0:02:35]} 14. Ng3 {[%clk 0:02:36]}  Bg6 {[%clk 0:02:35]} 15. c4 {[%clk 0:02:29]}  exd3 {[%clk 0:02:33]} 16. Bxd3 {[%clk 0:02:30]}  c6 {[%clk 0:02:16]} 17. Bxg6 {[%clk 0:02:23]}  hxg6 {[%clk 0:02:10]} 18. Rc1 {[%clk 0:02:22]}  Qe6 {[%clk 0:02:09]} 19. Qe2 {[%clk 0:02:13]}  Rd7 {[%clk 0:02:05]} 20. Red1 {[%clk 0:02:12]}  Red8 {[%clk 0:02:05]} 21. Qc2 {[%clk 0:02:08]}  dxc4 {[%clk 0:02:04]} 22. Rxd7 {[%clk 0:02:06]}  Rxd7 {[%clk 0:02:03]} 23. bxc4 {[%clk 0:01:51]}  Bb4 {[%clk 0:02:03]} 24. Nf1 {[%clk 0:01:48]}  a5 {[%clk 0:01:55]} 25. a4 {[%clk 0:01:42]}  Ne4 {[%clk 0:01:48]} 26. Bd4 {[%clk 0:01:42]}  c5 {[%clk 0:01:45]} 27. Ba1 {[%clk 0:01:41]}  f6 {[%clk 0:01:37]} 28. Bb2 {[%clk 0:01:25]}  b6 {[%clk 0:01:35]} 29. f3 {[%clk 0:01:09]}  Nd2 {[%clk 0:01:27]} 30. Rd1 {[%clk 0:01:09]}  Nxf1 {[%clk 0:01:27]} 31. Rxd7 {[%clk 0:01:06]}  Qxe3+ {[%clk 0:01:09]} 32. Kh1 {[%clk 0:01:06]}  Qe1 {[%clk 0:01:08]} 33. Rd1 {[%clk 0:00:17]}  Ng3# {[%clk 0:01:05]} 0-1


[Site "https://www.chess.com"]

[Event "Titled Tuesday Blitz October 31 Early 2023"]
[White "Klukin, Kirill"]
[Black "Gontcharov, Vladislav"]
[WhiteFideId "24199273"]
[BlackFideId "4123492"]
[WhiteElo "2832"]
[BlackElo "2579"]
[Result "1-0"]
[Round "9"]
[TimeControl "180+1"]
[Date "2023.10.31"]
[WhiteClock "0:00:20"]
[BlackClock "0:00:01"]
[Board "48"]

1. d4 {[%clk 0:03:00]}  Nf6 {[%clk 0:02:56]} 2. Nf3 {[%clk 0:03:01]}  e6 {[%clk 0:02:55]} 3. e3 {[%clk 0:03:01]}  c5 {[%clk 0:02:47]} 4. Bd3 {[%clk 0:03:01]}  Nc6 {[%clk 0:02:44]} 5. O-O {[%clk 0:03:02]}  d5 {[%clk 0:02:42]} 6. b3 {[%clk 0:03:01]}  Bd6 {[%clk 0:02:38]} 7. Bb2 {[%clk 0:03:01]}  O-O {[%clk 0:02:36]} 8. Nbd2 {[%clk 0:03:02]}  b6 {[%clk 0:02:34]} 9. e4 {[%clk 0:02:58]}  cxd4 {[%clk 0:02:30]} 10. Nxd4 {[%clk 0:02:46]}  Nxd4 {[%clk 0:02:25]} 11. Bxd4 {[%clk 0:02:46]}  e5 {[%clk 0:02:20]} 12. Bb2 {[%clk 0:02:42]}  Bb7 {[%clk 0:02:14]} 13. exd5 {[%clk 0:02:39]}  Bxd5 {[%clk 0:02:05]} 14. Nc4 {[%clk 0:02:38]}  Bxc4 {[%clk 0:01:50]} 15. Bxc4 {[%clk 0:02:38]}  Qc7 {[%clk 0:01:48]} 16. Qe2 {[%clk 0:02:35]}  Rfe8 {[%clk 0:01:38]} 17. Rad1 {[%clk 0:02:34]}  Re7 {[%clk 0:01:34]} 18. a4 {[%clk 0:02:32]}  Bb4 {[%clk 0:01:09]} 19. Rd3 {[%clk 0:02:23]}  Ne8 {[%clk 0:00:51]} 20. Rfd1 {[%clk 0:02:21]}  Nd6 {[%clk 0:00:51]} 21. Bd5 {[%clk 0:02:10]}  Rae8 {[%clk 0:00:43]} 22. c3 {[%clk 0:02:09]}  e4 {[%clk 0:00:42]} 23. Rh3 {[%clk 0:02:06]}  e3 {[%clk 0:00:29]} 24. cxb4 {[%clk 0:01:38]}  exf2+ {[%clk 0:00:28]} 25. Qxf2 {[%clk 0:01:38]}  Re2 {[%clk 0:00:27]} 26. Qh4 {[%clk 0:01:24]}  Qc2 {[%clk 0:00:21]} 27. Rf1 {[%clk 0:00:58]}  h6 {[%clk 0:00:09]} 28. Qf4 {[%clk 0:00:49]}  Qxb2 {[%clk 0:00:04]} 29. Qxd6 {[%clk 0:00:37]}  Kh8 {[%clk 0:00:04]} 30. Bxf7 {[%clk 0:00:19]}  Rxg2+ {[%clk 0:00:03]} 31. Kh1 {[%clk 0:00:20]}  Rf2 {[%clk 0:00:03]} 32. Rxh6+ {[%clk 0:00:19]}  gxh6 {[%clk 0:00:01]} 33. Qxh6# {[%clk 0:00:20]} 1-0


[Site "https://www.chess.com"]